fUSD/lending_fUSD_20260227
["ID","MTS","AMOUNT","RATE_DAILY","PERIOD"]
[406813278,1772203985942,-200.0,0.00046105,51]
[406813279,1772203985952,-500.0,0.00046105,54]
[406813280,1772203985961,-200.0,0.00046105,52]
[406813281,1772203985970,-200.0,0.00046105,53]
[406813282,1772203985980,-200.0,0.00046105,54]
[406813283,1772203985989,-500.0,0.00046105,30]
[406813284,1772203985999,-500.0,0.00046105,47]
[406813285,1772203986008,-500.0,0.00046105,50]
[406813286,1772203986018,-500.0,0.00046105,51]
[406813287,1772203986028,-500.0,0.00046105,52]
[406813288,1772203986037,-500.0,0.00046105,53]
[406813289,1772203986047,-500.0,0.00046105,54]
[406813290,1772203986056,-1962.73,0.00046106,120]
[406813291,1772203986065,-1962.73,0.00046106,120]
[406813292,1772203986074,-5000.0,0.00046106,120]
[406813293,1772203986084,-5000.0,0.00046106,120]
[406813294,1772203986093,-151.83284455,0.00046106,30]
[406813295,1772203986103,-266.27970706,0.00046106,30]
[406813296,1772203986112,-161.68352318,0.00046106,30]
[406813297,1772203986122,-293.08929833,0.00046106,30]
[406813298,1772203986131,-152.77119019,0.00046106,30]
[406813299,1772203986140,-258.16466543,0.00046106,30]
[406813300,1772203986150,-150.97871655,0.00046106,30]
[406813301,1772203986160,-156.14559364,0.00046106,30]
[406813302,1772203986169,-163.18354351,0.00046106,30]
[406813303,1772203986178,-159.89686653,0.00046106,30]
[406813304,1772203986187,-152.99150655,0.00046106,30]
[406813305,1772203986197,-156.95271474,0.00046106,30]
[406813306,1772203986207,-158.9979633,0.00046106,30]
[406813307,1772203986216,-238.25981257,0.00046106,30]
[406813308,1772203986226,-2000.0,0.00046112,120]
[406813309,1772203986235,-2000.0,0.00046117,120]
[406813310,1772203986244,-2000.0,0.00046117,120]
[406813311,1772203986254,-23666.68387426,0.00046124,60]
[406813312,1772203986263,-1211.0,0.00046145,2]
[406813313,1772203986272,-921.0,0.00046145,2]
[406813314,1772203986282,-2456.0,0.00046145,2]
[406813315,1772203986291,-3007.5991,0.00046166,2]
[406813316,1772203986299,-8008.32,0.00046182,120]
[406813317,1772203986309,-2894.09675998,0.00046195,2]
[406813318,1772203986318,-150.0,0.00046213,120]
[406813319,1772203986327,-500.0,0.0004626,30]
[406813320,1772203986336,-15000.0,0.000463,120]
[406813321,1772203986345,-3828.23856617,0.00046311,30]
[406813322,1772203986354,-3007.5991,0.00046331,2]
[406813323,1772203986363,-2199.4493,0.00046331,2]
[406813324,1772203986372,-2493.23671833,0.00046374,30]
[406813325,1772203986382,-156.0,0.000464,120]
[406813326,1772203986391,-8008.32,0.00046456,120]
[406813327,1772203986400,-3007.5991,0.00046495,2]
[406813328,1772203986409,-3828.23856617,0.00046516,30]
[406813329,1772203986421,-235.40289438,0.00046575,2]
[406813330,1772203986434,-300.0,0.00046575,120]
[406813331,1772203986446,-300.0,0.00046575,120]
[406813332,1772203986456,-301.88,0.00046575,120]
[406813333,1772203986466,-773.2413689,0.00046586,2]
[406813334,1772203986476,-12000.0,0.000466,120]
[406813335,1772203986485,-15000.0,0.000466,120]
[406813336,1772203986494,-3007.5991,0.00046659,2]
[406813337,1772203986508,-2199.4493,0.00046659,2]
[406813338,1772203986518,-3828.23856617,0.00046721,30]
[406813339,1772203986527,-8008.32,0.0004673,120]
[406813340,1772203986537,-900.0,0.00046775,60]
[406813341,1772203986653,-1900.0,0.00046775,60]
[406813342,1772203986668,-2100.0,0.00046775,60]
[406813343,1772203986678,-400.15655141,0.000468,120]
[406813344,1772203986688,-499.79,0.000468,120]
[406813345,1772203986697,-1547.16071995,0.00046802,120]
[406813346,1772203986707,-3007.5991,0.00046823,2]
[406813347,1772203986718,-1101.66,0.000469,120]
[406813348,1772203986729,-690.70175222,0.000469,120]
[406813349,1772203986739,-250.66061126,0.000469,120]
[406813350,1772203986749,-15000.0,0.000469,120]
[406813351,1772203986759,-3828.23856617,0.00046926,30]
[406813352,1772203986769,-152.8213546,0.00046939,30]
[406813353,1772203986779,-211.0,0.0004698,30]
[406813354,1772203986788,-3007.5991,0.00046988,2]
[406813355,1772203986798,-2199.4493,0.00046988,2]
[406813356,1772203986807,-1000.0,0.0004699,120]
[406813357,1772203986818,-1000.0,0.00047,50]
[406813358,1772203986827,-150.0,0.00047,120]
[406813359,1772203986836,-4300.0,0.00047,47]
[406813360,1772203986846,-1000.0,0.00047,120]
[406813361,1772203986855,-5000.0,0.00047,2]
[406813362,1772203986865,-5308.0,0.00047,120]
[406813363,1772203986874,-8008.32,0.00047004,120]
[406813364,1772203986884,-150.0,0.00047094,2]
[406813365,1772203986893,-300.0,0.00047096,2]
[406813366,1772203986903,-2799.88811382,0.00047096,2]
[406813367,1772203986912,-152.0,0.000471,120]
[406813368,1772203986922,-502.11,0.00047103,5]
[406813369,1772203986931,-3828.23856617,0.00047131,30]
[406813370,1772203986941,-3007.5991,0.00047152,2]
[406813371,1772203986951,-361.9234,0.000472,90]
[406813372,1772203986960,-15000.0,0.000472,120]
[406813373,1772203986970,-499.79,0.00047208,120]
[406813374,1772203986980,-8008.32,0.00047278,120]
[406813375,1772203986989,-215.35073481,0.00047315,120]
[406813376,1772203986999,-3007.5991,0.00047316,2]
[406813377,1772203987009,-2199.4493,0.00047317,2]
[406813378,1772203987018,-3828.23856617,0.00047336,30]
[406813379,1772203987027,-509.0,0.00047445,31]
[406813380,1772203987038,-3007.5991,0.00047481,2]
[406813381,1772203987049,-225.79160794,0.000475,120]
[406813382,1772203987060,-5000000.0,0.000475,120]
[406813383,1772203987069,-5000000.0,0.000475,120]
[406813384,1772203987078,-2000.0,0.000475,2]
[406813385,1772203987087,-15000.0,0.000475,120]
[406813386,1772203987096,-3828.23856617,0.00047541,30]
[406813387,1772203987107,-8008.32,0.00047552,120]
[406813388,1772203987116,-5289.41916648,0.000476,2]
[406813389,1772203987126,-499.79,0.00047616,120]
[406813390,1772203987135,-3007.5991,0.00047645,2]
[406813391,1772203987145,-2199.4493,0.00047645,2]
[406813392,1772203987155,-3828.23856617,0.00047746,30]
[406813393,1772203987165,-15000.0,0.000478,120]
[406813394,1772203987175,-3007.5991,0.00047809,2]
[406813395,1772203987184,-8008.32,0.00047826,120]
[406813396,1772203987193,-900.0,0.00047871,60]
[406813397,1772203987203,-1900.0,0.00047871,60]
[406813398,1772203987212,-2100.0,0.00047871,60]
[406813399,1772203987222,-318.74,0.00047873,120]
[406813400,1772203987232,-1000.0,0.000479,120]
[406813401,1772203987241,-6269.76647063,0.000479,120]
[406813402,1772203987253,-3828.23856617,0.00047951,30]
[406813403,1772203987262,-3007.5991,0.00047973,2]
[406813404,1772203987272,-2199.4493,0.00047974,2]
[406813405,1772203987282,-160.27086052,0.00048,2]
[406813406,1772203987291,-200.0,0.00048,120]
[406813407,1772203987300,-1000.0,0.00048,120]
[406813408,1772203987310,-150.0,0.00048,120]
[406813409,1772203987319,-157.86017051,0.00048,120]
[406813410,1772203987329,-200000.0,0.00048,120]
[406813411,1772203987339,-3369.20508569,0.00048,120]
[406813412,1772203987348,-3000.0,0.00048,120]
[406813413,1772203987358,-1000.0,0.00048,90]
[406813414,1772203987367,-1000.0,0.00048,90]
[406813415,1772203987377,-1000.0,0.00048,90]
[406813416,1772203987388,-1000.0,0.00048,90]
[406813417,1772203987397,-3000.0,0.00048,120]
[406813418,1772203987407,-815.63730509,0.00048,120]
[406813419,1772203987416,-402.65938699,0.00048,120]
[406813420,1772203987426,-1000.0,0.00048,120]
[406813421,1772203987439,-5000.0,0.00048,2]
[406813422,1772203987450,-156.0,0.00048,120]
[406813423,1772203987459,-499.79,0.00048024,120]
[406813424,1772203987469,-8008.32,0.000481,120]
[406813425,1772203987480,-15000.0,0.000481,120]
[406813426,1772203987489,-191.0,0.00048133,90]
[406813427,1772203987502,-3007.5991,0.00048138,2]
[406813428,1772203987512,-3828.23856617,0.00048155,30]
[406813429,1772203987522,-8059.93280727,0.00048165,30]
[406813430,1772203987532,-323.95695337,0.00048172,120]
[406813431,1772203987541,-162.44627448,0.00048194,120]
[406813432,1772203987551,-185.22306374,0.00048299,20]
[406813433,1772203987560,-3007.5991,0.00048302,2]
[406813434,1772203987569,-2199.4493,0.00048302,2]
[406813435,1772203987579,-1152.52862029,0.00048328,30]
[406813436,1772203987589,-265.79,0.00048348,120]
[406813437,1772203987598,-156.02803744,0.0004835,2]
[406813438,1772203987607,-3828.23856616,0.0004836,30]
[406813439,1772203987616,-8008.32,0.00048374,120]
[406813440,1772203987625,-1120.61511507,0.00048377,30]
[406813441,1772203987634,-15000.0,0.000484,120]
[406813442,1772203987644,-499.79,0.00048432,120]
[406813443,1772203987653,-152.0,0.000485,120]
[406813444,1772203987662,-3828.23856616,0.00048565,30]
[406813445,1772203987672,-5896.74624356,0.00048646,20]
[406813446,1772203987681,-8008.32,0.00048648,120]
[406813447,1772203987691,-874.39346076,0.0004869,120]
[406813448,1772203987701,-15000.0,0.000487,120]
[406813449,1772203987710,-3828.23856616,0.0004877,30]
[406813450,1772203987720,-1430.61091047,0.000488,120]
[406813451,1772203987730,-752.18397843,0.000488,120]
[406813452,1772203987740,-1000.0,0.000488,120]
[406813453,1772203987754,-499.79,0.0004884,120]
[406813454,1772203987763,-454.0,0.00048886,120]
[406813455,1772203987772,-3345.66527264,0.00048888,120]
[406813456,1772203987781,-1000.0,0.000489,120]
[406813457,1772203987791,-226.33355202,0.000489,120]
[406813458,1772203987800,-8008.32,0.00048922,120]
[406813459,1772203987808,-900.0,0.00048967,60]
[406813460,1772203987818,-1900.0,0.00048967,60]
[406813461,1772203987827,-2100.0,0.00048967,60]
[406813462,1772203987836,-3828.23856616,0.00048975,30]
[406813463,1772203987845,-211.0,0.0004899,30]
[406813464,1772203987854,-6000.0,0.00048998,60]
[406813465,1772203987863,-164.23599846,0.00049,120]
[406813466,1772203987873,-170.17565069,0.00049,120]
[406813467,1772203987883,-755.661285,0.00049,30]
[406813468,1772203987892,-150.0,0.00049,120]
[406813469,1772203987902,-5000.0,0.00049,7]
[406813470,1772203987911,-152.31965571,0.00049,120]
[406813471,1772203987921,-1689.2402381,0.00049,120]
[406813472,1772203987930,-1023.83993265,0.00049,120]
[406813473,1772203987940,-532.63993202,0.00049,120]
[406813474,1772203987950,-2445.33492221,0.00049,120]
[406813475,1772203987959,-1000.0,0.00049,120]
[406813476,1772203987968,-5000.0,0.00049,2]
[406813477,1772203987977,-47220.62212671,0.00049,120]
[406813478,1772203987987,-5308.0,0.00049,120]
[406813479,1772203987997,-15000.0,0.00049,120]
[406813480,1772203988006,-500.0,0.00049068,30]
[406813481,1772203988016,-152.0,0.00049076,5]
[406813482,1772203988025,-1211.0,0.00049145,2]
[406813483,1772203988035,-921.0,0.00049145,2]
[406813484,1772203988044,-2456.0,0.00049145,2]
[406813485,1772203988053,-3828.23856616,0.0004918,30]
[406813486,1772203988062,-8008.32,0.00049196,120]
[406813487,1772203988071,-499.79,0.00049248,120]
[406813488,1772203988081,-15000.0,0.000493,120]
[406813489,1772203988090,-500.0,0.00049315,120]
[406813490,1772203988100,-150.0,0.00049315,120]
[406813491,1772203988109,-801.85129955,0.00049325,2]
[406813492,1772203988119,-1444.0,0.0004937,120]
[406813493,1772203988128,-3828.23856616,0.00049385,120]
[406813494,1772203988137,-220.26721085,0.000494,60]
[406813495,1772203988146,-345.14438455,0.000495,120]
[406813496,1772203988156,-222.71286088,0.000495,120]
[406813497,1772203988165,-19591.98854295,0.000495,120]
[406813498,1772203988174,-5000000.0,0.000495,120]
[406813499,1772203988184,-5000000.0,0.000495,120]
[406813500,1772203988194,-3828.23856616,0.0004959,120]
[406813501,1772203988203,-20244.70173301,0.000496,120]
[406813502,1772203988212,-15000.0,0.000496,120]
[406813503,1772203988222,-499.79,0.00049656,120]
[406813504,1772203988231,-279.17994255,0.00049683,30]
[406813505,1772203988240,-156.0,0.000497,120]
[406813506,1772203988250,-3828.23856616,0.00049795,120]
[406813507,1772203988260,-335.0926969,0.000498,30]
[406813508,1772203988269,-1203.0454884,0.000498,120]
[406813509,1772203988279,-5601.17142295,0.0004988,30]
[406813510,1772203988290,-15000.0,0.000499,120]
[406813511,1772203988298,-273.58462625,0.0004999,120]
[406813512,1772203988307,-617.46415677,0.0004999,120]
[406813513,1772203988316,-342.786353,0.00049999,120]
[406813514,1772203988325,-198.17780379,0.00049999,15]
[406813515,1772203988335,-500.0,0.00049999,120]
[406813516,1772203988345,-500.0,0.00049999,120]
[406813517,1772203988354,-500.0,0.00049999,120]
[406813518,1772203988364,-168.57191577,0.00049999,120]
[406813519,1772203988373,-500.0,0.00049999,120]
[406813520,1772203988383,-500.0,0.00049999,120]
[406813521,1772203988392,-500.0,0.00049999,120]
[406813522,1772203988402,-500.0,0.00049999,120]
[406813523,1772203988412,-500.0,0.00049999,120]
[406813524,1772203988421,-241.73760361,0.00049999,120]
[406813525,1772203988431,-500.0,0.00049999,120]
[406813526,1772203988444,-500.0,0.00049999,120]
[406813527,1772203988454,-153.45665007,0.00049999,120]
[406813528,1772203988464,-500.0,0.00049999,120]
[406813529,1772203988474,-329.60912545,0.00049999,120]
[406813530,1772203988484,-500.0,0.00049999,120]
[406813531,1772203988493,-500.0,0.00049999,120]
[406813532,1772203988504,-500.0,0.00049999,120]
[406813533,1772203988513,-500.0,0.00049999,120]
[406813534,1772203988523,-500.0,0.00049999,120]
[406813535,1772203988532,-500.0,0.00049999,120]
[406813536,1772203988540,-500.0,0.00049999,120]
[406813537,1772203988549,-500.0,0.00049999,120]
[406813538,1772203988559,-500.0,0.00049999,120]
[406813539,1772203988568,-500.0,0.00049999,120]
[406813540,1772203988577,-500.0,0.00049999,120]
[406813541,1772203988587,-552.19237934,0.00049999,120]
[406813542,1772203988878,-500.0,0.00049999,120]
[406813543,1772203988894,-500.0,0.00049999,120]
[406813544,1772203988904,-500.0,0.00049999,120]
[406813545,1772203988913,-500.0,0.00049999,120]
[406813546,1772203988922,-500.0,0.00049999,120]
[406813547,1772203988931,-500.0,0.00049999,120]
[406813548,1772203988940,-500.0,0.00049999,120]
[406813549,1772203988950,-500.0,0.00049999,120]
[406813550,1772203988959,-500.0,0.00049999,120]
[406813551,1772203988969,-500.0,0.00049999,120]
[406813552,1772203988978,-500.0,0.00049999,120]
[406813553,1772203988987,-500.0,0.00049999,120]
[406813554,1772203988996,-500.0,0.00049999,120]
[406813555,1772203989006,-500.0,0.00049999,120]
[406813556,1772203989015,-500.0,0.00049999,120]
[406813557,1772203989025,-500.0,0.00049999,120]
[406813558,1772203989034,-500.0,0.00049999,120]
[406813559,1772203989044,-500.0,0.00049999,120]
[406813560,1772203989054,-500.0,0.00049999,120]
[406813561,1772203989064,-500.0,0.00049999,120]
[406813562,1772203989074,-500.0,0.00049999,120]
[406813563,1772203989084,-500.0,0.00049999,120]
[406813564,1772203989093,-500.0,0.00049999,120]
[406813565,1772203989103,-500.0,0.00049999,120]
[406813566,1772203989113,-500.0,0.00049999,120]
[406813567,1772203989123,-500.0,0.00049999,120]
[406813568,1772203989132,-500.0,0.00049999,120]
[406813569,1772203989142,-500.0,0.00049999,120]
[406813570,1772203989152,-500.0,0.00049999,120]
[406813571,1772203989162,-500.0,0.00049999,120]
[406813572,1772203989172,-500.0,0.00049999,120]
[406813573,1772203989181,-500.0,0.00049999,120]
[406813574,1772203989191,-500.0,0.00049999,120]
[406813575,1772203989200,-500.0,0.00049999,120]
[406813576,1772203989210,-500.0,0.00049999,120]
[406813577,1772203989219,-500.0,0.00049999,120]
[406813578,1772203989228,-500.0,0.00049999,120]
[406813579,1772203989238,-500.0,0.00049999,120]
[406813580,1772203989246,-401.59759326,0.00049999,120]
[406813581,1772203989255,-500.0,0.00049999,120]
[406813582,1772203989265,-500.0,0.00049999,120]
[406813583,1772203989274,-500.0,0.00049999,120]
[406813584,1772203989283,-500.0,0.00049999,120]
[406813585,1772203989292,-500.0,0.00049999,120]
[406813586,1772203989301,-500.0,0.00049999,120]
[406813587,1772203989310,-500.0,0.00049999,120]
[406813588,1772203989319,-500.0,0.00049999,120]
[406813589,1772203989328,-500.0,0.00049999,120]
[406813590,1772203989337,-500.0,0.00049999,120]
[406813591,1772203989347,-500.0,0.00049999,120]
[406813592,1772203989357,-500.0,0.00049999,120]
[406813593,1772203989366,-500.0,0.00049999,120]
[406813594,1772203989376,-500.0,0.00049999,120]
[406813595,1772203989386,-500.0,0.00049999,120]
[406813596,1772203989396,-500.0,0.00049999,120]
[406813597,1772203989406,-200.00000001,0.00049999,120]
[406813598,1772203989416,-500.0,0.00049999,120]
[406813599,1772203989425,-500.0,0.00049999,120]
[406813600,1772203989436,-500.0,0.00049999,120]
[406813601,1772203989450,-500.0,0.00049999,120]
[406813602,1772203989460,-500.0,0.00049999,120]
[406813603,1772203989472,-500.0,0.00049999,120]
[406813604,1772203989484,-500.0,0.00049999,120]
[406813605,1772203989494,-500.0,0.00049999,120]
[406813606,1772203989507,-500.0,0.00049999,120]
[406813607,1772203989522,-500.0,0.00049999,120]
[406813608,1772203989533,-500.0,0.00049999,120]
[406813609,1772203989544,-500.0,0.00049999,120]
[406813610,1772203989555,-50000.0,0.0005,110]
[406813611,1772203989565,-51357.65060835,0.0005,2]
[406813612,1772203989575,-1144.96001694,0.0005,2]
[406813613,1772203989585,-1001.53829453,0.0005,2]
[406813614,1772203989594,-10071.62291382,0.0005,5]
[406813615,1772203989604,-150.0,0.0005,40]
[406813616,1772203989614,-171.74476938,0.0005,120]
[406813617,1772203989624,-368.79117042,0.0005,120]
[406813618,1772203989633,-469.45626479,0.0005,120]
[406813619,1772203989643,-300.0,0.0005,120]
[406813620,1772203989652,-1000.0,0.0005,30]
[406813621,1772203989661,-600.0,0.0005,120]
[406813622,1772203989671,-600.0,0.0005,120]
[406813623,1772203989680,-1000000.0,0.0005,120]
[406813624,1772203989690,-1000000.0,0.0005,120]
[406813625,1772203989699,-1000000.0,0.0005,120]
[406813626,1772203989709,-320000.0,0.0005,120]
[406813627,1772203989718,-1200000.0,0.0005,120]
[406813628,1772203989727,-1000000.0,0.0005,120]
[406813629,1772203989736,-1000000.0,0.0005,120]
[406813630,1772203989745,-1000000.0,0.0005,120]
[406813631,1772203989761,-901799.0,0.0005,72]
[406813632,1772203989771,-901799.0,0.0005,72]
[406813633,1772203989780,-150.0,0.0005,120]
[406813634,1772203989789,-1000.0,0.0005,120]
[406813635,1772203989799,-12498.75671827,0.0005,30]
[406813636,1772203989808,-163.45388325,0.0005,30]
[406813637,1772203989817,-10000.0,0.0005,7]
[406813638,1772203989827,-1000000.0,0.0005,120]
[406813639,1772203989837,-1000000.0,0.0005,120]
[406813640,1772203989848,-1000000.0,0.0005,120]
[406813641,1772203989857,-1000000.0,0.0005,120]
[406813642,1772203989867,-1000000.0,0.0005,120]
[406813643,1772203989877,-400000.0,0.0005,120]
[406813644,1772203989886,-3500.0,0.0005,3]
[406813645,1772203989895,-150.0,0.0005,90]
[406813646,1772203989905,-4672.55507685,0.0005,120]
[406813647,1772203989914,-477.38295899,0.0005,120]
[406813648,1772203989923,-938.0,0.0005,120]
[406813649,1772203989932,-243.17846538,0.0005,120]
[406813650,1772203989942,-9370.61701088,0.0005,120]
[406813651,1772203989951,-1588.0435705,0.0005,45]
[406813652,1772203989961,-229.53388248,0.0005,30]
[406813653,1772203989971,-516.54631314,0.0005,120]
[406813654,1772203989982,-1397.81458969,0.0005,120]
[406813655,1772203989991,-173.74845042,0.0005,30]
[406813656,1772203990001,-1256.98598894,0.0005,120]
[406813657,1772203990010,-2281.5904842,0.0005,120]
[406813658,1772203990019,-167.46784993,0.0005,30]
[406813659,1772203990028,-251.29535068,0.0005,90]
[406813660,1772203990037,-5300.0,0.0005,120]
[406813661,1772203990047,-3828.23856616,0.0005,120]
[406813662,1772203990056,-10000.0,0.0005,120]
[406813663,1772203990066,-1616.27,0.0005,120]
[406813664,1772203990075,-323.26,0.0005,120]
[406813665,1772203990084,-5746.17,0.0005,120]
[406813666,1772203990093,-579.16,0.0005,120]
[406813667,1772203990102,-4389.97,0.0005,120]
[406813668,1772203990111,-5000.0,0.0005,2]
[406813669,1772203990120,-225.41530129,0.0005,30]
[406813670,1772203990130,-101348.11863724,0.0005,60]
[406813671,1772203990139,-5095.8220132,0.0005,60]
[406813672,1772203990149,-250.0,0.0005,50]
[406813673,1772203990159,-152.0,0.0005,120]
[406813674,1772203990168,-160.0,0.0005,7]
[406813675,1772203990178,-2894.09675998,0.0005,120]
[406813676,1772203990187,-1000000.0,0.0005,120]
[406813677,1772203990197,-1000000.0,0.0005,120]
[406813678,1772203990206,-1000000.0,0.0005,120]
[406813679,1772203990216,-1000000.0,0.0005,120]
[406813680,1772203990226,-1044273.0,0.0005,120]
[406813681,1772203990235,-2000000.0,0.0005,120]
[406813682,1772203990245,-2000000.0,0.0005,120]
[406813683,1772203990256,-2000000.0,0.0005,120]
[406813684,1772203990266,-174.00015664,0.0005,30]
[406813685,1772203990275,-174.00015664,0.0005,7]
[406813686,1772203990285,-318.74,0.00050036,120]
[406813687,1772203990294,-900.0,0.00050063,60]
[406813688,1772203990303,-1900.0,0.00050063,60]
[406813689,1772203990312,-2100.0,0.00050063,60]
[406813690,1772203990321,-499.79,0.00050064,120]
[406813691,1772203990331,-439.21441893,0.00050136,120]
[406813692,1772203990341,-15000.0,0.000502,120]
[406813693,1772203990350,-200.0,0.000504,60]
[406813694,1772203990360,-509.0,0.00050405,33]
[406813695,1772203990369,-499.79,0.00050472,120]
[406813696,1772203990379,-100000.0,0.000505,45]
[406813697,1772203990388,-5000000.0,0.000505,120]
[406813698,1772203990397,-15000.0,0.000505,120]
[406813699,1772203990407,-232.44788544,0.000506,120]
[406813700,1772203990416,-369.8,0.00050685,120]
[406813701,1772203990425,-1625.47754113,0.000507,120]
[406813702,1772203990434,-1901.0,0.00050796,120]
[406813703,1772203990445,-1034.41810184,0.000508,120]
[406813704,1772203990455,-532.78503689,0.000508,120]
[406813705,1772203990464,-359.50681856,0.000508,120]
[406813706,1772203990473,-199.2447612,0.000508,120]
[406813707,1772203990482,-185.83262235,0.000508,120]
[406813708,1772203990493,-201.60849927,0.000508,120]
[406813709,1772203990506,-325.55910067,0.000508,120]
[406813710,1772203990515,-320.69563941,0.000508,120]
[406813711,1772203990524,-279.841321,0.000508,120]
[406813712,1772203990534,-15000.0,0.000508,120]
[406813713,1772203990543,-152.8213546,0.00050851,30]
[406813714,1772203990552,-499.79,0.0005088,120]
[406813715,1772203990561,-10000.0,0.0005088,120]
[406813716,1772203990571,-5000.0,0.000509,120]
[406813717,1772203990580,-215.35073481,0.00050967,120]
[406813718,1772203990589,-14109.37498499,0.00051,120]
[406813719,1772203990598,-150.0,0.00051,40]
[406813720,1772203990607,-50000.0,0.00051,120]
[406813721,1772203990617,-1000000.0,0.00051,77]
[406813722,1772203990626,-1000000.0,0.00051,77]
[406813723,1772203990635,-150.0,0.00051,120]
[406813724,1772203990645,-1000.0,0.00051,120]
[406813725,1772203990654,-4144.16752434,0.00051,120]
[406813726,1772203990663,-1539.0,0.00051,60]
[406813727,1772203990672,-999998.0,0.00051,120]
[406813728,1772203990682,-3981.34920629,0.00051,120]
[406813729,1772203990691,-1046.13330962,0.00051,60]
[406813730,1772203990700,-1631.27461018,0.00051,120]
[406813731,1772203990709,-805.31877398,0.00051,120]
[406813732,1772203990718,-5000.0,0.00051,2]
[406813733,1772203990728,-1000000.0,0.00051,120]
[406813734,1772203990737,-1000000.0,0.00051,120]
[406813735,1772203990747,-1000000.0,0.00051,120]
[406813736,1772203990757,-1000000.0,0.00051,120]
[406813737,1772203990767,-5308.0,0.00051,120]
[406813738,1772203990776,-15000.0,0.000511,120]
[406813739,1772203990786,-900.0,0.00051159,60]
[406813740,1772203990795,-1900.0,0.00051159,60]
[406813741,1772203990804,-2100.0,0.00051159,60]
[406813742,1772203990814,-2000.0,0.000512,2]
[406813743,1772203990823,-499.79,0.00051287,120]
[406813744,1772203990833,-156.0,0.000513,120]
[406813745,1772203990842,-403.49743211,0.00051327,120]
[406813746,1772203990851,-152.0,0.000514,120]
[406813747,1772203990860,-200.0,0.000514,60]
[406813748,1772203990870,-15000.0,0.000514,120]
[406813749,1772203990879,-155.29374161,0.00051475,120]
[406813750,1772203990888,-20000.0,0.000515,120]
[406813751,1772203990898,-794603.72,0.000515,84]
[406813752,1772203990908,-93645.93849309,0.000515,30]
[406813753,1772203994171,-1022.79832148,0.000515,30]
[406813754,1772203994182,-954.67114887,0.000515,30]
[406813755,1772203994194,-999.4796696,0.000515,30]
[406813756,1772203994205,-456.96151717,0.000515,30]
[406813757,1772203994284,-14356.06368839,0.000515,30]
[406813758,1772204211186,5000.01,7.74e-05,2]
[406813759,1772204211208,2950.12,7.74e-05,2]
[406813765,1772204582845,10000.01,7.74e-05,2]
[406813766,1772204582869,9680.58,7.74e-05,2]
[406813767,1772204919688,500.0,7.74e-05,2]
[406813768,1772204985176,810.84,4.257e-05,2]
[406813769,1772204985404,810.84,4.44e-05,2]
[406813770,1772204985609,810.84,4.624e-05,2]
[406813771,1772204985878,810.84,4.807e-05,2]
[406813772,1772204986078,810.84,4.99e-05,2]
[406813773,1772204986312,810.84,5.173e-05,2]
[406813774,1772204986613,810.84,5.357e-05,2]
[406813775,1772204987021,810.84,5.54e-05,2]
[406813776,1772204987316,810.84,5.723e-05,2]
[406813777,1772204987584,810.84,5.907e-05,2]
[406813778,1772204987837,810.84,6.09e-05,2]
[406813779,1772204988035,810.84,6.273e-05,2]
[406813780,1772204988238,269.93,6.457e-05,2]
[406813781,1772204988266,540.91,6.457e-05,2]
[406813782,1772204988444,810.84,6.64e-05,2]